bitfinex/quotes_SOLUSD_20250422
["timestamp","ask_amount","ask_price","bid_price","bid_amount"]
[1745343099240,0.03,144.49,144.46,20.14129253]
[1745343099430,27.0922792,144.49,144.44,46.14129253]
[1745343099820,20.14129253,144.47,144.44,26.0]
[1745343100029,20.14129253,144.48,144.44,26.0]
[1745343100527,27.06312923,144.48,144.44,26.0]
[1745343100731,0.03,144.49,144.45,20.14129253]
[1745343100928,27.0923267,144.49,144.44,46.14129253]
[1745343101937,27.0923267,144.49,144.44,26.0]
[1745343103137,20.14129253,144.48,144.44,26.0]
[1745343104139,20.14129253,144.47,144.44,26.0]
[1745343104319,20.14129253,144.48,144.44,26.0]
[1745343104514,45.74197556,144.49,144.44,26.0]
[1745343105542,45.74197556,144.49,144.44,46.14129253]
[1745343106434,0.03,144.49,144.47,20.14129253]
[1745343107149,0.03,144.49,144.46,20.14129253]
[1745343107517,0.03,144.49,144.45,20.14129253]
[1745343107722,20.17129253,144.49,144.44,124.59475353]
[1745343108147,27.09219028,144.49,144.44,124.59475353]
[1745343108317,0.03,144.49,144.45,20.14129253]
[1745343109337,0.03,144.49,144.46,20.14129253]
[1745343110137,0.03,144.49,144.47,20.14129253]
[1745343111944,0.03,144.49,144.46,20.14129253]
[1745343112646,0.03,144.49,144.47,20.14129253]
[1745343113724,0.03,144.49,144.48,20.14129253]
[1745343115232,0.03,144.55,144.51,26.0]
[1745343115556,0.03,144.55,144.54,20.14129253]
[1745343115747,0.03,144.55,144.54,68.09769253]
[1745343115924,0.03,144.58,144.56,26.0]
[1745343116124,0.03,144.58,144.57,20.14129253]
[1745343116738,0.03,144.58,144.57,26.0]
[1745343116935,0.03,144.58,144.57,46.14129253]
[1745343117156,0.03,144.62,144.61,26.0]
[1745343117455,0.03,144.62,144.61,124.59475353]
[1745343119237,0.03,144.62,144.61,104.453461]
[1745343119447,0.03,144.62,144.61,124.59475353]
[1745343119951,0.03,144.62,144.61,104.453461]
[1745343120251,0.03,144.62,144.61,124.59475353]
[1745343120757,20.17129253,144.62,144.55,98.59475353]
[1745343121052,0.03,144.62,144.58,26.0]
[1745343121252,0.03,144.62,144.59,20.14129253]
[1745343121546,0.03,144.62,144.58,98.59475353]
[1745343122047,0.03,144.62,144.59,20.14129253]
[1745343122267,0.03,144.62,144.6,20.14129253]
[1745343122543,0.03,144.62,144.61,26.0]
[1745343122732,0.03,144.62,144.61,46.14129253]
[1745343123125,0.03,144.62,144.61,26.0]
[1745343123439,20.17129253,144.62,144.57,26.0]
[1745343123644,20.14129253,144.6,144.57,26.0]
[1745343123945,20.14129253,144.61,144.57,26.0]
[1745343124155,20.14129253,144.6,144.57,26.0]
[1745343124647,20.14129253,144.61,144.57,26.0]
[1745343124831,45.73597064,144.62,144.57,46.14129253]
[1745343125028,20.14129253,144.61,144.57,26.0]
[1745343125231,20.14129253,144.6,144.56,78.453461]
[1745343125519,45.73597064,144.62,144.57,20.14129253]
[1745343125729,20.14129253,144.61,144.56,78.453461]
[1745343125933,20.14129253,144.61,144.56,98.59475353]
[1745343127029,45.73597064,144.62,144.56,98.59475353]
[1745343127545,20.14129253,144.61,144.56,98.59475353]
[1745343128043,0.03,144.62,144.59,46.14129253]
[1745343128248,0.03,144.62,144.59,26.0]
[1745343128440,20.14129253,144.61,144.59,26.0]
[1745343128953,27.05670382,144.61,144.56,78.453461]
[1745343129267,27.05670382,144.61,144.56,124.59475353]
[1745343129425,6.91541129,144.61,144.57,20.14129253]
[1745343129629,6.91541129,144.61,144.56,124.59475353]
[1745343129630,27.05670382,144.61,144.56,124.59475353]
[1745343130045,20.14129253,144.61,144.56,124.59475353]
[1745343130352,27.05654642,144.61,144.56,124.59475353]
[1745343130535,6.91525389,144.61,144.57,20.14129253]
[1745343130840,27.05654642,144.61,144.56,124.59475353]
[1745343131048,25.5945025,144.62,144.57,20.14129253]
[1745343131235,0.03,144.62,144.6,20.14129253]
[1745343131436,0.03,144.62,144.56,104.453461]
[1745343131656,0.03,144.62,144.58,20.14129253]
[1745343131834,0.03,144.62,144.59,46.14129253]
[1745343132039,0.03,144.62,144.61,20.14129253]
[1745343132440,0.03,144.62,144.61,124.59475353]
[1745343132858,0.03,144.64,144.63,26.0]
[1745343133073,0.03,144.64,144.63,131.50894837]
[1745343134868,0.03,144.64,144.63,124.59475353]
[1745343135055,0.03,144.64,144.63,104.453461]
[1745343136569,0.03,144.64,144.63,78.453461]
[1745343137740,0.03,144.64,144.63,98.59475353]
[1745343137943,0.03,144.64,144.63,78.453461]
[1745343138545,0.03,144.64,144.62,20.14129253]
[1745343139148,0.03,144.64,144.63,20.14129253]
[1745343139974,0.03,144.64,144.63,26.0]
[1745343140374,0.03,144.64,144.62,20.14129253]
[1745343140574,0.03,144.64,144.61,26.0]
[1745343140788,0.03,144.64,144.61,46.14129253]
[1745343141278,0.03,144.64,144.61,26.0]
[1745343142174,0.03,144.64,144.62,26.0]
[1745343144881,38.79094139,144.63,144.56,78.453461]
[1745343145180,1.5482,144.64,144.54,78.453461]
[1745343145181,20.14129253,144.58,144.54,78.453461]
[1745343145478,20.14129253,144.6,144.55,20.14129253]
[1745343145679,20.14129253,144.58,144.54,104.453461]
[1745343145865,20.14129253,144.59,144.54,124.59475353]
[1745343146662,6.91658597,144.58,144.54,104.453461]
[1745343147064,27.0578785,144.58,144.54,104.453461]
[1745343147275,6.91658597,144.58,144.54,104.453461]
[1745343147488,20.14129253,144.57,144.52,78.516461]
[1745343147691,20.14129253,144.55,144.52,0.063]
[1745343148095,20.14129253,144.56,144.52,0.063]
[1745343148289,20.28044886,144.57,144.52,0.063]
[1745343148586,20.14129253,144.56,144.52,0.063]
[1745343148798,27.05930664,144.56,144.52,0.063]
[1745343149502,20.14129253,144.55,144.52,0.063]
[1745343149662,20.14129253,144.54,144.52,0.063]
[1745343149995,20.14129253,144.53,144.52,0.063]
[1745343150169,20.14129253,144.54,144.52,0.063]
[1745343150772,27.06027128,144.53,144.52,0.063]
[1745343151168,6.91897875,144.53,144.52,0.063]
[1745343152605,27.05997627,144.54,144.52,0.063]
[1745343153582,38.79094139,144.53,144.52,0.063]
[1745343154993,45.70992014,144.53,144.52,0.063]
[1745343156779,25.56862761,144.53,144.52,0.063]
[1745343157090,38.79094139,144.53,144.52,0.063]
[1745343157297,6.91817095,144.55,144.52,0.063]
[1745343157486,18.64964886,144.56,144.52,20.20429253]
[1745343157868,18.64964886,144.56,144.52,0.063]
[1745343158070,38.79094139,144.56,144.52,0.063]
[1745343158300,20.14129253,144.55,144.52,0.063]
[1745343158484,20.14129253,144.54,144.52,0.063]
[1745343159175,38.79094139,144.55,144.52,0.063]
[1745343160304,20.14129253,144.54,144.52,0.063]
[1745343160807,20.14129253,144.53,144.52,0.063]
[1745343161170,27.06016746,144.54,144.52,0.063]
[1745343161812,6.91887493,144.54,144.52,0.063]
[1745343162178,45.70911187,144.55,144.52,0.063]
[1745343163411,20.14129253,144.54,144.52,0.063]
[1745343164010,45.70911187,144.55,144.52,0.063]
[1745343164394,18.64964886,144.55,144.52,0.063]
[1745343164703,18.64964886,144.56,144.52,0.063]
[1745343164897,38.79094139,144.56,144.52,0.063]
[1745343165103,45.70887449,144.56,144.52,0.063]
[1745343165606,20.14129253,144.55,144.52,0.063]
[1745343166607,45.70887449,144.56,144.52,0.063]
[1745343166823,18.64964886,144.56,144.52,46.20429253]
[1745343167003,18.64964886,144.6,144.55,20.14129253]
[1745343167190,20.14129253,144.59,144.54,20.14129253]
[1745343167585,20.14129253,144.59,144.53,20.14129253]
[1745343168000,18.64964886,144.6,144.54,20.14129253]
[1745343168198,38.79094139,144.6,144.54,20.14129253]
[1745343168419,38.79094139,144.6,144.55,20.14129253]
[1745343168600,38.79094139,144.6,144.52,111.43589484]
[1745343168601,20.14129253,144.59,144.54,20.14129253]
[1745343169406,18.64964886,144.6,144.56,20.14129253]
[1745343169602,7.7755,144.61,144.57,20.14129253]
[1745343169912,18.64964886,144.61,144.57,20.14129253]
[1745343171001,25.56487967,144.61,144.57,20.14129253]
[1745343171614,6.91523081,144.61,144.57,20.14129253]
[1745343171803,43.37616555,144.62,144.57,20.14129253]
[1745343172400,23.23487302,144.62,144.57,20.14129253]
[1745343172598,6.91432845,144.63,144.58,20.14129253]
[1745343172923,27.08522384,144.64,144.59,20.14129253]
[1745343173823,6.94393131,144.64,144.59,20.14129253]
[1745343174113,27.08522384,144.64,144.59,20.14129253]
[1745343174347,0.03,144.64,144.6,20.14129253]
[1745343175126,0.03,144.64,144.6,26.0]
[1745343175325,18.67964886,144.64,144.6,26.0]
[1745343175493,38.82094139,144.64,144.6,26.0]
[1745343175901,0.03,144.64,144.62,20.14129253]
[1745343176302,0.03,144.64,144.6,111.36908897]
[1745343176505,0.03,144.64,144.63,20.14129253]
[1745343177118,0.03,144.64,144.63,98.59475353]
[1745343177819,0.03,144.68,144.67,6.91228312]
[1745343178028,0.03,144.68,144.67,105.50703665]
[1745343178197,0.03,144.68,144.67,98.59475353]
[1745343178807,0.03,144.68,144.67,118.73604606]
[1745343179222,0.03,144.7,144.69,26.0]
[1745343179520,0.03,144.7,144.69,46.14129253]
[1745343180304,0.03,144.7,144.67,78.453461]
[1745343180503,0.03,144.7,144.68,20.14129253]
[1745343180807,0.03,144.7,144.67,98.59475353]
[1745343181306,0.03,144.7,144.69,20.14129253]
[1745343181528,0.03,144.7,144.69,46.14129253]
[1745343182523,0.03,144.7,144.69,151.64737372]
[1745343183318,0.03,144.77,144.73,26.0]
[1745343183630,0.03,144.77,144.75,20.14129253]
[1745343184030,0.03,144.77,144.73,46.14129253]
[1745343185219,0.03,144.77,144.73,26.0]
[1745343185427,32.0570587,144.75,144.7,32.0570587]
[1745343186127,6.90894016,144.74,144.7,32.0570587]
[1745343186609,6.90894016,144.74,144.69,26.0]
[1745343187124,38.96599886,144.74,144.69,58.0570587]
[1745343187332,6.90894016,144.74,144.7,32.0570587]
[1745343187510,38.96599886,144.74,144.69,58.0570587]
[1745343187827,32.0570587,144.7,144.59,6.0023]
[1745343188006,18.64964886,144.7,144.62,32.0570587]
[1745343188212,32.0570587,144.68,144.63,32.0570587]
[1745343188412,24.18964682,144.69,144.61,26.0]
[1745343188629,32.0570587,144.68,144.63,32.0570587]
[1745343189542,6.91228312,144.67,144.63,32.0570587]
[1745343189735,6.91132766,144.69,144.64,32.0570587]
[1745343189908,6.91132766,144.69,144.66,32.0570587]
[1745343190525,6.91132766,144.69,144.65,32.0570587]
[1745343191035,6.91132766,144.69,144.64,78.423461]
[1745343191236,6.91101224,144.7,144.67,32.0570587]
[1745343191410,6.91101224,144.7,144.66,32.0570587]
[1745343191816,6.91101224,144.7,144.67,32.0570587]
[1745343193231,6.90941753,144.73,144.69,32.0570587]
[1745343193823,32.0570587,144.72,144.67,110.4805197]
[1745343194029,38.96647623,144.73,144.67,110.4805197]
[1745343194411,38.96647623,144.73,144.68,32.0570587]
[1745343194816,6.90941753,144.73,144.68,32.0570587]
[1745343195111,8.51128737,144.74,144.7,32.0570587]
[1745343196819,0.03,144.76,144.72,32.0570587]
[1745343197022,32.0870587,144.76,144.7,78.423461]
[1745343197211,0.03,144.76,144.71,32.0570587]
[1745343197412,32.0870587,144.76,144.71,32.0570587]
[1745343197721,32.0870587,144.76,144.7,78.423461]
[1745343198038,32.0870587,144.76,144.71,32.0570587]
[1745343198833,0.03,144.76,144.72,32.0570587]
[1745343199531,32.0870587,144.76,144.71,32.0570587]
[1745343200845,0.03,144.76,144.71,32.0570587]
[1745343201145,32.0570587,144.75,144.7,110.4805197]
[1745343202250,0.03,144.76,144.7,110.4805197]
[1745343202549,32.0870587,144.76,144.7,110.4805197]
[1745343202735,0.03,144.76,144.73,32.0570587]
[1745343203061,6.90846286,144.75,144.7,110.4805197]
[1745343203431,6.93816583,144.76,144.72,32.0570587]
[1745343204050,6.93816583,144.76,144.7,78.423461]
[1745343204051,0.03,144.76,144.74,32.0570587]
[1745343204255,0.03,144.76,144.73,32.0570587]
[1745343204629,6.93806987,144.76,144.71,26.0]
[1745343204829,32.0570587,144.73,144.69,26.0]
[1745343205042,38.96670679,144.73,144.69,26.0]
[1745343205326,32.0570587,144.73,144.69,26.0]
[1745343205531,38.99525366,144.76,144.71,32.0570587]
[1745343205759,6.93819496,144.76,144.71,32.0570587]
[1745343206047,0.03,144.76,144.72,32.0570587]
[1745343206245,6.93799101,144.76,144.72,32.0570587]
[1745343206551,38.99504971,144.76,144.71,26.0]
[1745343206760,38.99504971,144.76,144.71,32.0570587]
[1745343207050,6.93799101,144.76,144.71,32.0570587]
[1745343207247,6.93799101,144.76,144.69,111.33475666]
[1745343207438,6.93799101,144.76,144.71,20.03257391]
[1745343207848,6.93799101,144.76,144.72,20.03257391]
[1745343208053,0.03,144.76,144.73,20.03257391]
[1745343208259,0.03,144.76,144.74,20.03257391]
[1745343209053,0.03,144.76,144.73,98.45603491]
[1745343210157,0.03,144.76,144.74,20.03257391]
[1745343210345,0.03,144.76,144.73,78.423461]
[1745343210954,0.03,144.76,144.73,98.45603491]
[1745343211151,0.03,144.76,144.75,20.03257391]
[1745343211333,0.03,144.76,144.75,46.03257391]
[1745343213355,0.03,144.76,144.75,104.423461]
[1745343213563,0.03,144.76,144.75,124.45603491]
[1745343213756,0.03,144.76,144.75,104.423461]
[1745343214137,0.03,144.76,144.75,78.423461]
[1745343216355,0.03,144.76,144.72,26.0]
[1745343216950,0.03,144.76,144.72,46.03257391]
[1745343217449,6.93798563,144.76,144.72,46.03257391]
[1745343221264,6.93798563,144.76,144.72,87.55257391]
[1745343221562,6.93798563,144.76,144.72,46.03257391]
[1745343221875,6.93798563,144.76,144.73,20.03257391]
[1745343222454,0.03,144.76,144.73,20.03257391]
[1745343222971,0.03,144.76,144.74,20.03257391]
[1745343223772,0.03,144.76,144.73,20.03257391]
[1745343223969,0.03,144.76,144.74,20.03257391]
[1745343224151,0.03,144.76,144.75,20.03257391]
[1745343224550,0.03,144.76,144.74,78.423461]
[1745343225263,0.03,144.76,144.74,98.45603491]
[1745343225778,0.03,144.76,144.75,20.03257391]
[1745343228257,0.03,144.76,144.74,78.423461]
[1745343228579,0.03,144.76,144.74,98.45603491]
[1745343229159,0.03,144.76,144.74,78.423461]
[1745343229361,0.03,144.76,144.72,26.0]
[1745343229557,20.03257391,144.75,144.7,26.0]
[1745343229763,20.03257391,144.75,144.7,20.03257391]
[1745343229946,20.03257391,144.75,144.69,78.423461]
[1745343230147,20.03257391,144.74,144.69,78.423461]
[1745343230348,20.03257391,144.71,144.69,78.423461]
[1745343230573,20.03257391,144.71,144.66,98.45603491]
[1745343230783,20.22154886,144.74,144.66,78.423461]
[1745343230983,20.03257391,144.73,144.68,20.03257391]
[1745343231155,6.91037246,144.71,144.67,20.03257391]
[1745343231353,6.91037246,144.71,144.66,78.423461]
[1745343231567,6.91037246,144.71,144.67,20.03257391]
[1745343233489,6.91037246,144.71,144.68,20.03257391]
[1745343234461,26.94236075,144.73,144.68,20.03257391]
[1745343235383,26.94236075,144.73,144.66,78.423461]
[1745343235384,20.03257391,144.71,144.66,98.45603491]
[1745343235676,6.90978684,144.73,144.67,20.03257391]
[1745343235677,24.18333068,144.73,144.67,20.03257391]
[1745343235856,6.90978684,144.73,144.68,20.03257391]
[1745343236056,26.94236075,144.73,144.68,20.03257391]
[1745343236558,20.03257391,144.72,144.67,20.03257391]
[1745343236759,6.90978684,144.73,144.67,20.03257391]
[1745343236981,8.48104714,144.74,144.7,20.03257391]
[1745343237164,1.5719,144.74,144.7,20.03257391]
[1745343237488,20.03257391,144.73,144.68,46.03257391]
[1745343238792,20.03257391,144.72,144.67,98.45603491]
[1745343238997,6.90999626,144.72,144.68,20.03257391]
[1745343239182,26.94257017,144.72,144.67,98.45603491]
[1745343239683,20.03257391,144.69,144.64,78.486461]
[1745343239873,20.03257391,144.68,144.64,0.063]
[1745343240060,20.03257391,144.67,144.64,0.063]
[1745343240688,21.60447391,144.68,144.64,0.063]
[1745343240896,20.03257391,144.67,144.64,0.063]
[1745343241093,20.03257391,144.65,144.64,0.063]
[1745343241394,45.01582277,144.65,144.64,0.063]
[1745343242113,45.01582277,144.65,144.63,0.063]
[1745343242114,18.64964886,144.64,144.63,0.063]
[1745343242263,38.68222277,144.64,144.63,0.063]
[1745343243080,45.59593958,144.64,144.63,0.063]
[1745343243481,90.45213161,144.64,144.6,0.063]
[1745343243678,38.68222277,144.61,144.6,0.063]
[1745343245088,18.64964886,144.61,144.6,0.063]
[1745343245299,25.56479995,144.61,144.6,0.063]
[1745343245501,1.5719,144.64,144.6,0.063]
[1745343245702,20.03257391,144.62,144.6,0.063]
[1745343246210,20.03257391,144.61,144.6,0.063]
[1745343247189,45.59737386,144.61,144.6,0.063]
[1745343248384,6.91515109,144.61,144.6,0.063]
[1745343248774,26.94740462,144.62,144.6,0.063]
[1745343249597,20.03257391,144.61,144.6,0.063]
[1745343249985,26.94740462,144.62,144.6,0.063]
[1745343251199,6.91483071,144.62,144.6,0.063]
[1745343251583,26.94690392,144.63,144.6,0.063]
[1745343251909,25.56397887,144.63,144.6,0.063]
[1745343252102,28.51838437,144.64,144.6,0.063]
[1745343253076,20.03257391,144.63,144.6,0.063]
[1745343253289,20.03257391,144.62,144.6,0.063]
[1745343253882,20.03257391,144.63,144.6,0.063]
[1745343254391,20.03257391,144.62,144.6,0.063]
[1745343254575,28.51838437,144.64,144.6,0.063]
[1745343254776,8.48581046,144.64,144.6,0.063]
[1745343254974,28.51838437,144.64,144.6,0.063]
[1745343257006,20.03257391,144.63,144.6,0.063]
[1745343257184,28.51838437,144.64,144.6,0.063]
[1745343257599,20.03257391,144.63,144.6,0.063]
[1745343257797,20.03257391,144.62,144.6,0.063]
[1745343258297,20.03257391,144.63,144.6,0.063]
[1745343258803,20.03257391,144.61,144.6,0.063]
[1745343259179,26.94724684,144.62,144.6,0.063]
[1745343259822,20.03257391,144.61,144.6,0.063]
[1745343259984,26.94724684,144.62,144.6,0.063]
[1745343260903,20.03257391,144.61,144.6,0.063]
[1745343261294,38.68222277,144.61,144.6,0.063]
[1745343261688,6.91467293,144.62,144.6,0.063]
[1745343262489,26.94724684,144.62,144.6,0.063]
[1745343263420,6.91467293,144.62,144.6,0.063]
[1745343264213,26.94724684,144.62,144.6,0.063]
[1745343264610,37.5059113,144.64,144.6,0.063]
[1745343264611,1.5719,144.64,144.6,0.063]
[1745343264922,8.48589316,144.64,144.6,20.09557391]
[1745343265527,8.48589316,144.64,144.6,0.063]
[1745343266387,28.51846707,144.64,144.6,0.063]
[1745343269591,20.03257391,144.63,144.6,0.063]
[1745343270199,20.03257391,144.62,144.6,0.063]
[1745343270600,38.68222277,144.61,144.6,0.063]
[1745343270819,45.59737386,144.61,144.6,0.063]
[1745343273218,45.59737386,144.61,144.6,1e-08]
[1745343273819,51.63657386,144.61,144.6,1e-08]
[1745343274114,97.63657386,144.61,144.6,1e-08]
[1745343275017,46.15544886,144.58,144.57,1e-08]
[1745343275205,66.18802277,144.58,144.57,1e-08]
[1745343275923,46.15544886,144.58,144.57,1e-08]
[1745343276122,66.09679435,144.58,144.57,1e-08]
[1745343276930,73.01338032,144.58,144.57,1e-08]
[1745343278990,38.64964886,144.57,144.55,1e-08]
[1745343279217,38.68222277,144.56,144.55,1e-08]
[1745343280024,42.11416215,144.56,144.55,1e-08]
[1745343280205,38.68222277,144.56,144.55,1e-08]
[1745343281327,45.59976565,144.56,144.55,1e-08]
[1745343281500,44.64964886,144.53,144.52,0.063]
[1745343281701,64.68222277,144.53,144.52,0.063]
[1745343283530,71.60120152,144.53,144.52,0.063]
[1745343290330,25.56862761,144.53,144.52,0.063]
[1745343290554,6.91706439,144.57,144.52,20.09557391]
[1745343290832,18.64964886,144.56,144.52,20.09557391]
[1745343291139,18.64964886,144.56,144.52,0.063]
[1745343291320,18.64964886,144.56,144.52,20.09557391]
[1745343291661,25.56742609,144.56,144.52,20.09557391]
[1745343292632,18.64964886,144.56,144.53,20.03257391]
[1745343292956,25.56728769,144.56,144.52,0.063]
[1745343293115,25.56728769,144.56,144.52,20.09557391]
[1745343294661,34.90964886,144.58,144.53,20.03257391]
[1745343294816,6.91622377,144.59,144.56,20.03257391]
[1745343295024,6.91622377,144.59,144.55,20.03257391]
[1745343296030,26.94879768,144.59,144.55,20.03257391]
[1745343296408,26.94879768,144.59,144.54,20.03257391]
[1745343297327,6.91622377,144.59,144.55,20.03257391]
[1745343298035,26.94879768,144.59,144.54,20.03257391]
[1745343299053,26.94879768,144.59,144.55,20.03257391]
[1745343299426,26.94879768,144.59,144.54,20.03257391]
[1745343301039,6.91622377,144.59,144.54,20.03257391]
[1745343301357,12.85333179,144.58,144.53,12.85333179]
[1745343302056,6.91691916,144.58,144.54,12.85333179]
[1745343302258,12.85333179,144.56,144.52,0.063]
[1745343302553,12.85333179,144.55,144.52,0.063]
[1745343303346,20.0934363,144.55,144.52,0.063]
[1745343303652,18.64964886,144.57,144.52,0.063]
[1745343303855,18.64964886,144.55,144.52,0.063]
[1745343304039,6.91850006,144.54,144.52,0.063]
[1745343304857,43.29146493,144.58,144.52,20.1564363]
[1745343305158,6.91658597,144.58,144.54,20.0934363]
[1745343305359,6.91658597,144.58,144.55,20.0934363]
[1745343305537,6.91658597,144.58,144.54,20.0934363]
[1745343306438,27.01002227,144.58,144.53,20.0934363]
[1745343307063,6.91658597,144.58,144.53,20.0934363]
[1745343307358,27.01002227,144.58,144.53,20.0934363]
[1745343307750,6.91658597,144.58,144.53,20.0934363]
[1745343308250,27.01002227,144.58,144.53,20.0934363]
[1745343308955,38.74308516,144.57,144.52,20.1564363]
[1745343309870,18.64964886,144.57,144.52,0.063]
[1745343310031,38.74308516,144.57,144.52,20.1564363]
[1745343310431,6.91754288,144.56,144.52,20.1564363]
[1745343312232,38.74308516,144.55,144.52,0.063]
[1745343312665,20.0934363,144.54,144.52,0.063]
[1745343312964,38.74308516,144.55,144.52,0.063]
[1745343314070,20.0934363,144.53,144.52,0.063]
[1745343314257,27.01241505,144.53,144.52,0.063]
[1745343314453,6.91897875,144.53,144.52,0.063]
[1745343316763,45.66206391,144.53,144.52,0.063]
[1745343319674,6.91897875,144.53,144.52,0.063]
[1745343320675,6.91850006,144.54,144.52,0.063]
[1745343321085,27.01193636,144.54,144.52,0.063]
[1745343323084,6.91850006,144.54,144.52,0.063]
[1745343323458,6.91850006,144.54,144.52,20.1564363]
[1745343323699,23.15774326,144.56,144.53,20.0934363]
[1745343324000,25.56623483,144.58,144.54,20.0934363]
[1745343324206,45.65967113,144.58,144.53,20.0934363]
[1745343324562,45.65967113,144.58,144.52,0.063]
[1745343324782,25.56623483,144.58,144.52,0.063]
[1745343325082,25.56623483,144.58,144.54,20.0934363]
[1745343325291,25.56623483,144.58,144.54,12.85251917]
[1745343325462,38.418754,144.58,144.52,0.063]
[1745343325662,38.418754,144.58,144.53,12.85251917]
[1745343326206,33.52930376,144.6,144.57,12.85251917]
[1745343326207,16.24,144.6,144.57,12.85251917]
[1745343326491,6.94528673,144.61,144.58,12.85251917]
[1745343326788,0.03,144.61,144.53,67.45]
[1745343326966,0.03,144.61,144.59,12.85251917]
[1745343327171,0.03,144.61,144.58,12.85251917]
[1745343327471,0.03,144.61,144.58,20.06881759]
[1745343329901,0.03,144.61,144.57,20.06881759]
[1745343330412,15.39184263,144.62,144.58,20.06881759]
[1745343330903,6.91515109,144.61,144.58,20.06881759]
[1745343331083,6.91515109,144.61,144.57,20.06881759]
[1745343332076,26.98396868,144.61,144.56,20.06881759]
[1745343332271,20.06881759,144.6,144.55,20.06881759]
[1745343332979,6.91610761,144.59,144.55,20.06881759]
[1745343334693,6.91610761,144.59,144.56,20.06881759]
[1745343334999,25.59336567,144.64,144.58,20.06881759]
[1745343335200,25.59336567,144.64,144.59,20.06881759]
[1745343335499,45.66218326,144.64,144.59,20.06881759]
[1745343335882,20.06881759,144.62,144.57,20.06881759]
[1745343336084,20.06881759,144.61,144.55,78.423461]
[1745343336305,18.64964886,144.63,144.54,26.0]
[1745343336609,18.64964886,144.61,144.57,20.06881759]
[1745343337085,25.56451484,144.62,144.58,20.06881759]
[1745343337903,25.56451484,144.62,144.57,20.06881759]
[1745343338584,45.63333243,144.62,144.57,20.06881759]
[1745343339203,25.56451484,144.62,144.54,26.0]
[1745343339414,20.06881759,144.61,144.56,20.06881759]
[1745343340586,25.56451484,144.62,144.56,20.06881759]
[1745343340788,20.06881759,144.61,144.56,20.06881759]
[1745343341087,6.91562932,144.6,144.56,8.63073959]
[1745343343014,43.31429203,144.64,144.55,20.06881759]
[1745343343185,46.09881759,144.64,144.59,20.06881759]
[1745343344408,46.09881759,144.64,144.57,20.06881759]
[1745343344409,26.98334594,144.63,144.57,20.06881759]
[1745343344596,20.06881759,144.62,144.57,20.06881759]
[1745343345886,20.06881759,144.61,144.56,20.06881759]
[1745343346085,18.64964886,144.62,144.57,20.06881759]
[1745343346299,26.98334594,144.63,144.58,20.06881759]
[1745343346490,20.06881759,144.62,144.57,20.06881759]
[1745343347089,20.06881759,144.61,144.56,20.06881759]
[1745343347719,20.06881759,144.61,144.55,98.49227859]
[1745343348717,6.91562932,144.6,144.56,20.06881759]
[1745343349014,25.56432179,144.62,144.57,20.06881759]
[1745343349193,45.63313938,144.62,144.56,20.06881759]
[1745343349400,38.4113084,144.62,144.56,12.84698661]
[1745343349790,25.56432179,144.62,144.57,12.84698661]
[1745343350011,38.4113084,144.62,144.55,78.423461]
[1745343350205,12.84698661,144.61,144.56,12.84698661]
[1745343350714,6.91441212,144.63,144.58,12.84698661]
[1745343351117,6.91441212,144.63,144.6,12.84698661]
[1745343351304,27.78937382,144.64,144.59,12.84698661]
[1745343351507,27.78937382,144.64,144.55,136.72934983]
[1745343351508,8.0285,144.64,144.6,12.84698661]
[1745343351703,1.664,144.64,144.6,12.84698661]
[1745343351923,0.03,144.64,144.61,12.84698661]
[1745343352107,6.9437194,144.64,144.6,12.84698661]
[1745343352310,6.9437194,144.64,144.59,26.0]
[1745343352311,19.79070601,144.64,144.57,26.0]
[1745343352613,19.79070601,144.64,144.59,12.84698661]
[1745343352814,6.9437194,144.64,144.6,12.84698661]
[1745343353009,19.79070601,144.64,144.59,12.84698661]
[1745343353323,19.79070601,144.64,144.57,111.34048777]
[1745343353629,19.79070601,144.64,144.59,12.84698661]
[1745343354538,6.9437194,144.64,144.6,12.84698661]
[1745343355815,6.9437194,144.64,144.57,111.34048777]
[1745343356019,6.9437194,144.64,144.6,12.84698661]
[1745343357113,0.03,144.64,144.62,12.84698661]
[1745343357515,0.03,144.64,144.61,12.84698661]